[Event "EWCCC Online Preliminary-C 2020"]
[Site "Online"]
[Date "2020.12.19"]
[Round "2.1"]
[White "Broly, Mathilde"]
[Black "Hrenic, Misa"]
[Result "0-1"]
[ECO "A37"]
[WhiteElo "2150"]
[BlackElo "2020"]
[Annotator "NA"]
[PlyCount "79"]
[EventDate "2020.12.19"]
[EventType "team-tourn"]
[EventCountry "NET"]
[SourceTitle "playchess.com"]
[Source "ChessBase"]
[SourceQuality "1"]
[TimeControl "900+5"]

1. c4 {[%emt 0:00:00]} c5 {[%emt 0:00:05]} 2. g3 {[%emt 0:00:07]} Nc6 {[%emt 0:00:03]} 3. Bg2 {[%emt 0:00:05]} g6 {[%emt 0:00:03]} 4. Nf3 {[%emt 0:00:21]} Bg7 $11 {[%emt 0:00:05]} 5. O-O {[%emt 0:00:02]} e5 {[%emt 0:01:08]} 6. Nc3 {[%emt 0:00:10]} Nge7 {[%emt 0:00:03]} 7. Ne1 {[%emt 0:00:07]} d6 {[%emt 0:00:07]} 8. Nc2 {[%emt 0:00:06]} Be6 {[%emt 0:00:20]} 9. Ne3 {[%emt 0:00:14]} O-O {[%emt 0:00:18]} 10. a3 {[%emt 0:01:00]} Rb8 {[%emt 0:00:12]} 11. Rb1 {[%emt 0:00:28]} a5 {[%emt 0:00:11]} 12. d3 {[%emt 0:00:13]} Nd4 {[%emt 0:02:17]} 13. Ned5 {[%emt 0:01:42]} h6 {[%emt 0:02:51]} 14. e3 {[%emt 0:00:47]} Ndc6 {[%emt 0:01:10]} 15. Bd2 {[%emt 0:00:53]} Bxd5 {[%emt 0:02:07]} 16. Nxd5 {[%emt 0:00:11]} Nxd5 {[%emt 0:00:12]} 17. Bxd5 {[%emt 0:00:12]} Ne7 {[%emt 0:00:07]} 18. Bg2 {[%emt 0:00:13]} b5 {[%emt 0:00:28]} 19. cxb5 {[%emt 0:02:32]} Rxb5 {[%emt 0:00:04]} 20. Qa4 {[%emt 0:00:02]} Qb6 {[%emt 0:00:51]} 21. b4 {[%emt 0:00:54]} axb4 {[%emt 0:00:05]} 22. axb4 {[%emt 0:00:04]} Rb8 {[%emt 0:00:36]} 23. bxc5 {[%emt 0:00:07]} Qxc5 {[%emt 0:00:07]} 24. Rbc1 {[%emt 0:00:41]} Qb6 {[%emt 0:00:14]} 25. Bc3 {[%emt 0:00:30]} Nd5 {[%emt 0:00:24]} 26. Ba1 {[%emt 0:00:22]} Nb4 {[%emt 0:00:35]} 27. d4 {[%emt 0:00:23]} exd4 {[%emt 0:00:24]} 28. exd4 {[%emt 0:00:10]} Bxd4 {[%emt 0:00:04]} 29. Bxd4 {[%emt 0:00:10]} Qxd4 {[%emt 0:00:02]} 30. Rc7 {[%emt 0:00:08]} Qb6 {[%emt 0:00:29]} 31. Rd7 {[%emt 0:00:43]} Rf5 {[%emt 0:00:25]} 32. Be4 {[%emt 0:00:31]} Rf6 {[%emt 0:00:10]} 33. Qb3 {[%emt 0:00:27]} Qd4 {[%emt 0:00:39]} 34. Bxg6 {[%emt 0:00:06]} Nc6 {[%emt 0:00:29]} 35. Bxf7+ {[%emt 0:00:46]} Kh8 {[%emt 0:00:04]} 36. Rb7 {[%emt 0:00:04]} Rf8 {[%emt 0:00:07]} 37. Qc4 {[%emt 0:01:02]} R6xf7 {[%emt 0:00:15]} 38. Qxc6 {[%emt 0:00:11]} Rxf2 {[%emt 0:00:06]} 39. Rh7+ {[%emt 0:00:49]} Kxh7 {[%emt 0:00:03]} 40. Qb7+ {[%emt 0:00:10]} 0-1

[Event "EWCCC Online Preliminary-C 2020"]
[Site "Online"]
[Date "2020.12.19"]
[Round "2.1"]
[White "Nicoara, Malina"]
[Black "Heric, Meta"]
[Result "1/2-1/2"]
[ECO "D53"]
[WhiteElo "2066"]
[BlackElo "1318"]
[Annotator "NA"]
[PlyCount "93"]
[EventDate "2020.12.19"]
[EventType "team-tourn"]
[EventCountry "NET"]
[SourceTitle "playchess.com"]
[Source "ChessBase"]
[SourceQuality "1"]
[TimeControl "900+5"]

1. d4 {[%emt 0:00:00]} d5 {[%emt 0:00:04]} 2. c4 {[%emt 0:00:03]} e6 {[%emt 0:00:04]} 3. Nc3 {[%emt 0:00:03]} Nf6 {[%emt 0:00:04]} 4. cxd5 {[%emt 0:00:02]} exd5 {[%emt 0:00:06]} 5. Bg5 {[%emt 0:00:03]} Be7 {[%emt 0:00:06]} 6. e3 {[%emt 0:00:03]} b6 {[%emt 0:00:11]} 7. Bd3 {[%emt 0:00:13]} Bb7 {[%emt 0:00:25]} 8. Nf3 {[%emt 0:00:13]} Nbd7 {[%emt 0:00:20]} 9. Qc2 {[%emt 0:00:07]} h6 {[%emt 0:00:11]} 10. Bf4 {[%emt 0:00:14]} c5 {[%emt 0:00:34]} 11. dxc5 {[%emt 0:00:12]} bxc5 {[%emt 0:00:39]} 12. O-O {[%emt 0:00:17]} O-O {[%emt 0:00:38]} 13. Rfd1 {[%emt 0:00:05]} Nh5 {[%emt 0:01:31]} 14. Bg3 {[%emt 0:00:11]} Nxg3 {[%emt 0:00:22]} 15. hxg3 {[%emt 0:00:02]} Nf6 {[%emt 0:00:21]} 16. Rac1 {[%emt 0:00:34]} Rc8 {[%emt 0:01:00]} 17. Bf5 {[%emt 0:00:03]} Rb8 {[%emt 0:00:28]} 18. b3 {[%emt 0:00:19]} Ba6 {[%emt 0:02:30]} 19. Ne2 {[%emt 0:02:49]} Bxe2 {[%emt 0:01:32]} 20. Qxe2 {[%emt 0:00:02]} Qd6 {[%emt 0:00:25]} 21. e4 {[%emt 0:00:44]} Qc6 {[%emt 0:02:00]} 22. e5 {[%emt 0:00:16]} Ne4 {[%emt 0:00:10]} 23. Bxe4 {[%emt 0:04:42]} dxe4 {[%emt 0:00:06]} 24. Nd2 {[%emt 0:00:02]} Rb4 {[%emt 0:00:59]} 25. Nc4 {[%emt 0:00:12]} f5 {[%emt 0:00:23]} 26. Rc2 {[%emt 0:00:56]} f4 {[%emt 0:00:15]} 27. gxf4 {[%emt 0:00:08]} Rxf4 {[%emt 0:00:07]} 28. Qd2 {[%emt 0:00:15]} Rg4 {[%emt 0:00:44]} 29. Qd7 {[%emt 0:00:18]} Qxd7 {[%emt 0:00:58]} 30. Rxd7 {[%emt 0:00:03]} Bh4 {[%emt 0:00:06]} 31. Rxa7 {[%emt 0:00:07]} Rb8 {[%emt 0:00:03]} 32. Ne3 {[%emt 0:01:23]} Rg5 {[%emt 0:00:05]} 33. g3 {[%emt 0:00:31]} Rf8 {[%emt 0:00:02]} 34. Kg2 {[%emt 0:01:04]} Rg6 {[%emt 0:00:03]} 35. Rxc5 {[%emt 0:00:18]} Bg5 {[%emt 0:00:02]} 36. Rcc7 {[%emt 0:00:35]} Bxe3 {[%emt 0:00:04]} 37. fxe3 {[%emt 0:00:02]} Rf3 {[%emt 0:00:02]} 38. e6 {[%emt 0:00:32]} Rfxg3+ {[%emt 0:00:05]} 39. Kh2 {[%emt 0:00:03]} Rg2+ {[%emt 0:00:02]} 40. Kh1 {[%emt 0:00:05]} Rg1+ {[%emt 0:00:01]} 41. Kh2 {[%emt 0:00:02]} R6g2+ {[%emt 0:00:02]} 42. Kh3 {[%emt 0:00:02]} Rg3+ {[%emt 0:00:01]} 43. Kh2 {[%emt 0:00:01]} R1g2+ {[%emt 0:00:03]} 44. Kh1 {[%emt 0:00:02]} Rg1+ {[%emt 0:00:01]} 45. Kh2 {[%emt 0:00:01]} R1g2+ {[%emt 0:00:01]} 46. Kh1 {[%emt 0:00:01]} Rg1+ {[%emt 0:00:02]} 47. Kh2 {[%emt 0:00:01]} 1/2-1/2

[Event "EWCCC Online Preliminary-C 2020"]
[Site "Online"]
[Date "2020.12.19"]
[Round "2.1"]
[White "Mihevc-Mohr, Narcisa"]
[Black "Moingt, Anne"]
[Result "0-1"]
[ECO "B80"]
[WhiteElo "1974"]
[BlackElo "2076"]
[Annotator "NA"]
[PlyCount "98"]
[EventDate "2020.12.19"]
[EventType "team-tourn"]
[EventCountry "NET"]
[SourceTitle "playchess.com"]
[Source "ChessBase"]
[SourceQuality "1"]
[TimeControl "900+5"]

1. e4 {[%emt 0:00:00]} c5 {[%emt 0:00:03]} 2. Nf3 {[%emt 0:00:07]} d6 {[%emt 0:00:04]} 3. d4 {[%emt 0:00:04]} cxd4 {[%emt 0:00:02]} 4. Nxd4 {[%emt 0:00:03]} Nf6 {[%emt 0:00:01]} 5. Nc3 {[%emt 0:00:08]} e6 {[%emt 0:00:02]} 6. g3 {[%emt 0:00:08]} Nc6 {[%emt 0:00:52]} 7. Bg2 {[%emt 0:00:06]} Bd7 {[%emt 0:00:02]} 8. O-O {[%emt 0:00:35]} Be7 {[%emt 0:00:09]} 9. Nb3 {[%emt 0:00:23]} O-O {[%emt 0:00:21]} 10. Be3 {[%emt 0:02:17]} Ne5 {[%emt 0:00:33]} 11. Qe2 {[%emt 0:00:29]} Qc7 {[%emt 0:00:12]} 12. Rad1 {[%emt 0:00:24]} Nc4 {[%emt 0:00:19]} 13. Bc1 {[%emt 0:00:12]} Rac8 {[%emt 0:00:06]} 14. g4 {[%emt 0:00:25]} h6 {[%emt 0:01:52]} 15. f4 {[%emt 0:01:40]} Nh7 {[%emt 0:00:57]} 16. Kh1 {[%emt 0:00:16]} b5 {[%emt 0:00:04]} 17. Qf3 {[%emt 0:04:54]} b4 {[%emt 0:00:10]} 18. Ne2 {[%emt 0:00:04]} Bc6 {[%emt 0:00:03]} 19. Ned4 {[%emt 0:00:13]} Ba8 {[%emt 0:00:08]} 20. Qh3 {[%emt 0:00:43]} a5 {[%emt 0:01:01]} 21. Nf3 {[%emt 0:00:40]} Bxe4 {[%emt 0:00:14]} 22. Nbd4 {[%emt 0:00:37]} Qc5 {[%emt 0:01:25]} 23. g5 {[%emt 0:00:19]} hxg5 {[%emt 0:00:13]} 24. Nxe6 {[%emt 0:00:05]} Bf5 {[%emt 0:01:52]} 25. Nxc5 {[%emt 0:00:13]} Bxh3 {[%emt 0:00:04]} 26. Bxh3 {[%emt 0:00:08]} Rxc5 {[%emt 0:00:02]} 27. fxg5 {[%emt 0:00:10]} Nxg5 {[%emt 0:00:07]} 28. Nxg5 {[%emt 0:00:25]} Bxg5 {[%emt 0:00:02]} 29. Bxg5 {[%emt 0:00:21]} Rxg5 {[%emt 0:00:03]} 30. Rd4 {[%emt 0:00:17]} Nxb2 {[%emt 0:00:25]} 31. Rxd6 {[%emt 0:00:10]} Nc4 {[%emt 0:00:13]} 32. Rd7 {[%emt 0:00:17]} Ne5 {[%emt 0:00:41]} 33. Re7 {[%emt 0:00:06]} Rd8 {[%emt 0:00:37]} 34. Ra7 {[%emt 0:00:14]} Rd2 {[%emt 0:00:24]} 35. Re7 {[%emt 0:00:27]} f6 {[%emt 0:00:22]} 36. Re8+ {[%emt 0:00:12]} Kf7 {[%emt 0:00:09]} 37. Rb8 {[%emt 0:00:02]} Rh5 {[%emt 0:01:12]} 38. Rb7+ {[%emt 0:00:02]} Kf8 {[%emt 0:00:14]} 39. Bg2 {[%emt 0:00:02]} Ng4 {[%emt 0:00:36]} 40. h3 {[%emt 0:00:16]} Rxg2 {[%emt 0:00:19]} 41. Kxg2 {[%emt 0:00:03]} Ne3+ {[%emt 0:00:01]} 42. Kf2 {[%emt 0:00:01]} Nxf1 {[%emt 0:00:02]} 43. Kxf1 {[%emt 0:00:02]} Rxh3 {[%emt 0:00:01]} 44. Rb5 {[%emt 0:00:01]} Ra3 {[%emt 0:00:06]} 45. Ke1 {[%emt 0:00:18]} Rxa2 {[%emt 0:00:02]} 46. Kd1 {[%emt 0:00:02]} Kf7 {[%emt 0:00:07]} 47. Kc1 {[%emt 0:00:01]} g5 {[%emt 0:00:03]} 48. Kb1 {[%emt 0:00:04]} Ra3 {[%emt 0:00:01]} 49. Kb2 {[%emt 0:00:06]} Kg6 {[%emt 0:00:04]} 0-1

[Event "EWCCC Online Preliminary-C 2020"]
[Site "Online"]
[Date "2020.12.19"]
[Round "2.2"]
[White "Thode, Gilda"]
[Black "Kalaiyalahan, Akshaya"]
[Result "1/2-1/2"]
[ECO "A48"]
[WhiteElo "1987"]
[BlackElo "2149"]
[Annotator "NA"]
[PlyCount "72"]
[EventDate "2020.12.19"]
[EventType "team-tourn"]
[EventCountry "NET"]
[SourceTitle "playchess.com"]
[Source "ChessBase"]
[SourceQuality "1"]
[TimeControl "900+5"]

1. d4 {[%emt 0:00:00]} Nf6 {[%emt 0:00:03]} 2. Nf3 {[%emt 0:00:11]} g6 {[%emt 0:00:03]} 3. Bg5 {[%emt 0:00:15]} Bg7 {[%emt 0:00:02]} 4. Nbd2 {[%emt 0:00:04]} O-O {[%emt 0:00:05]} 5. e4 {[%emt 0:00:14]} d5 {[%emt 0:00:11]} 6. e5 {[%emt 0:00:03]} Ne4 {[%emt 0:01:51]} 7. Bh4 {[%emt 0:00:41]} c5 {[%emt 0:01:07]} 8. c3 {[%emt 0:00:05]} Nc6 {[%emt 0:00:37]} 9. Bb5 {[%emt 0:01:58]} Nxd2 {[%emt 0:01:43]} 10. Qxd2 {[%emt 0:00:08]} Bg4 {[%emt 0:00:35]} 11. Bxc6 {[%emt 0:03:27]} bxc6 {[%emt 0:00:03]} 12. Qf4 {[%emt 0:00:23]} Bxf3 {[%emt 0:00:28]} 13. Qxf3 {[%emt 0:00:03]} Qb6 {[%emt 0:01:36]} 14. Bxe7 {[%emt 0:00:33]} Qxb2 {[%emt 0:00:07]} 15. O-O {[%emt 0:00:05]} cxd4 {[%emt 0:00:42]} 16. cxd4 {[%emt 0:00:42]} Rfb8 {[%emt 0:01:59]} 17. Qe3 {[%emt 0:01:45]} Rb5 {[%emt 0:02:39]} 18. Ba3 {[%emt 0:00:12]} Qc2 {[%emt 0:00:21]} 19. Rac1 {[%emt 0:01:01]} Qxa2 {[%emt 0:00:13]} 20. Rxc6 {[%emt 0:01:35]} Rb3 {[%emt 0:00:18]} 21. Rc3 {[%emt 0:00:02]} Rab8 {[%emt 0:01:00]} 22. Bd6 {[%emt 0:00:30]} Rxc3 {[%emt 0:00:11]} 23. Qxc3 {[%emt 0:00:05]} Rd8 {[%emt 0:00:34]} 24. Ra1 {[%emt 0:00:27]} Qe2 {[%emt 0:00:03]} 25. h3 {[%emt 0:00:24]} h5 {[%emt 0:00:17]} 26. Rxa7 {[%emt 0:00:21]} Qd1+ {[%emt 0:00:02]} 27. Kh2 {[%emt 0:00:03]} Rxd6 {[%emt 0:00:11]} 28. Qc8+ {[%emt 0:01:12]} Kh7 {[%emt 0:00:05]} 29. exd6 {[%emt 0:00:15]} Qxd4 {[%emt 0:00:05]} 30. Rxf7 {[%emt 0:00:28]} Qe5+ {[%emt 0:00:04]} 31. g3 {[%emt 0:00:07]} Qxd6 {[%emt 0:00:03]} 32. Qb7 {[%emt 0:00:06]} Qe5 {[%emt 0:00:03]} 33. Re7 {[%emt 0:00:10]} Qf6 {[%emt 0:00:02]} 34. Rf7 {[%emt 0:00:01]} Qe5 {[%emt 0:00:02]} 35. Re7 {[%emt 0:00:05]} Qf6 {[%emt 0:00:01]} 36. Rf7 {[%emt 0:00:09]} Qe5 {[%emt 0:00:02]} 1/2-1/2

[Event "EWCCC Online Preliminary-C 2020"]
[Site "Online"]
[Date "2020.12.19"]
[Round "2.2"]
[White "Jaufarally, Nadia"]
[Black "Kurapova, Olga"]
[Result "1-0"]
[ECO "C54"]
[WhiteElo "1905"]
[BlackElo "1927"]
[Annotator "NA"]
[PlyCount "81"]
[EventDate "2020.12.19"]
[EventType "team-tourn"]
[EventCountry "NET"]
[SourceTitle "playchess.com"]
[Source "ChessBase"]
[SourceQuality "1"]
[TimeControl "900+5"]

1. e4 {[%emt 0:00:00]} e5 {[%emt 0:00:04]} 2. Nf3 {[%emt 0:00:02]} Nc6 {[%emt 0:00:03]} 3. Bc4 {[%emt 0:00:04]} Bc5 {[%emt 0:00:03]} 4. d3 {[%emt 0:00:03]} Nf6 {[%emt 0:00:04]} 5. c3 {[%emt 0:00:02]} a6 {[%emt 0:00:04]} 6. Bb3 {[%emt 0:00:02]} d6 {[%emt 0:00:06]} 7. h3 {[%emt 0:00:03]} h6 {[%emt 0:00:07]} 8. O-O {[%emt 0:00:04]} O-O {[%emt 0:00:04]} 9. Re1 {[%emt 0:00:39]} Re8 {[%emt 0:00:03]} 10. Nbd2 {[%emt 0:00:07]} Be6 {[%emt 0:00:31]} 11. Bc2 {[%emt 0:01:34]} d5 {[%emt 0:00:30]} 12. exd5 {[%emt 0:00:24]} Bxd5 {[%emt 0:00:06]} 13. Ne4 {[%emt 0:03:36]} Nxe4 {[%emt 0:00:11]} 14. dxe4 {[%emt 0:00:02]} Be6 {[%emt 0:00:07]} 15. Qe2 {[%emt 0:01:00]} Qe7 {[%emt 0:01:01]} 16. Nh2 {[%emt 0:02:06]} Qf6 {[%emt 0:00:43]} 17. Be3 {[%emt 0:00:19]} Bxe3 {[%emt 0:00:30]} 18. Qxe3 {[%emt 0:00:04]} Rad8 {[%emt 0:00:48]} 19. b3 {[%emt 0:00:17]} g5 {[%emt 0:01:01]} 20. Bd1 {[%emt 0:00:37]} Qg6 {[%emt 0:00:13]} 21. Bg4 {[%emt 0:01:01]} h5 {[%emt 0:00:32]} 22. Bxe6 {[%emt 0:00:32]} Rxe6 {[%emt 0:00:08]} 23. Nf1 {[%emt 0:00:50]} Red6 {[%emt 0:00:09]} 24. Ng3 {[%emt 0:00:56]} Rd3 {[%emt 0:00:43]} 25. Qc5 {[%emt 0:00:03]} b6 {[%emt 0:00:52]} 26. Qc4 {[%emt 0:00:04]} R8d7 {[%emt 0:02:55]} 27. Nf5 {[%emt 0:00:21]} Qf6 {[%emt 0:00:45]} 28. Ne3 {[%emt 0:01:59]} Na5 {[%emt 0:00:59]} 29. Qxa6 {[%emt 0:00:21]} Rd2 {[%emt 0:00:59]} 30. Re2 {[%emt 0:00:05]} Rxe2 {[%emt 0:00:36]} 31. Qxe2 {[%emt 0:00:02]} Qg6 {[%emt 0:00:16]} 32. Nd5 {[%emt 0:00:09]} Nc6 {[%emt 0:00:15]} 33. Rd1 {[%emt 0:00:02]} Kg7 {[%emt 0:00:30]} 34. f3 {[%emt 0:00:07]} f6 {[%emt 0:00:14]} 35. Ne3 {[%emt 0:00:04]} Rxd1+ {[%emt 0:00:21]} 36. Qxd1 {[%emt 0:00:02]} Qf7 {[%emt 0:00:02]} 37. Qd5 {[%emt 0:00:04]} Qe8 {[%emt 0:00:31]} 38. Nf5+ {[%emt 0:00:07]} Kg6 {[%emt 0:00:14]} 39. Qxc6 {[%emt 0:00:08]} Qd8 {[%emt 0:00:35]} 40. Kh2 {[%emt 0:00:03]} Kf7 {[%emt 0:00:13]} 41. Qd5+ {[%emt 0:00:05]} 1-0

[Event "EWCCC Online Preliminary-C 2020"]
[Site "Online"]
[Date "2020.12.19"]
[Round "2.3"]
[White "Schoene, Maria"]
[Black "Gretarsdottir, Lilja"]
[Result "1-0"]
[ECO "B81"]
[WhiteElo "2204"]
[BlackElo "1984"]
[Annotator "NA"]
[PlyCount "73"]
[EventDate "2020.12.19"]
[EventType "team-tourn"]
[EventCountry "NET"]
[SourceTitle "playchess.com"]
[Source "ChessBase"]
[SourceQuality "1"]
[TimeControl "900+5"]

1. e4 {[%emt 0:00:00]} c5 {[%emt 0:00:04]} 2. Nf3 {[%emt 0:00:03]} d6 {[%emt 0:00:03]} 3. d4 {[%emt 0:00:02]} cxd4 {[%emt 0:00:02]} 4. Nxd4 {[%emt 0:00:01]} Nf6 {[%emt 0:00:02]} 5. Nc3 {[%emt 0:00:01]} e6 {[%emt 0:00:03]} 6. g4 {[%emt 0:00:04]} Be7 {[%emt 0:00:33]} 7. g5 {[%emt 0:00:13]} Nfd7 {[%emt 0:00:19]} 8. h4 {[%emt 0:00:04]} a6 {[%emt 0:00:14]} 9. Be3 {[%emt 0:00:08]} b5 {[%emt 0:00:41]} 10. a3 {[%emt 0:00:04]} Bb7 {[%emt 0:00:03]} 11. Qe2 {[%emt 0:00:52]} Nc6 {[%emt 0:01:10]} 12. Nxc6 {[%emt 0:00:55]} Bxc6 {[%emt 0:00:03]} 13. O-O-O {[%emt 0:00:02]} Rc8 {[%emt 0:00:12]} 14. f4 {[%emt 0:00:14]} Qa5 {[%emt 0:00:58]} 15. Bg2 {[%emt 0:00:30]} b4 {[%emt 0:00:51]} 16. axb4 {[%emt 0:00:11]} Qa1+ {[%emt 0:03:43]} 17. Nb1 {[%emt 0:00:13]} Bb5 {[%emt 0:00:05]} 18. Qg4 {[%emt 0:01:10]} Qa4 {[%emt 0:01:28]} 19. Rd2 {[%emt 0:02:14]} Qxb4 {[%emt 0:01:23]} 20. h5 {[%emt 0:00:28]} Nc5 {[%emt 0:00:55]} 21. Bxc5 {[%emt 0:00:28]} Rxc5 {[%emt 0:00:05]} 22. Rh3 {[%emt 0:02:09]} a5 {[%emt 0:01:39]} 23. g6 {[%emt 0:00:16]} Bf6 {[%emt 0:00:26]} 24. c3 {[%emt 0:00:52]} Qa4 {[%emt 0:00:23]} 25. Rxd6 {[%emt 0:00:30]} hxg6 {[%emt 0:01:30]} 26. hxg6 {[%emt 0:00:07]} Rxh3 {[%emt 0:00:03]} 27. gxf7+ {[%emt 0:00:15]} Kxf7 {[%emt 0:00:09]} 28. Qxe6+ {[%emt 0:00:32]} Kf8 {[%emt 0:00:03]} 29. Qxh3 {[%emt 0:00:51]} Bc4 {[%emt 0:00:06]} 30. e5 {[%emt 0:01:01]} Be7 {[%emt 0:00:02]} 31. Rd4 {[%emt 0:00:15]} Qb3 {[%emt 0:00:05]} 32. Be4 {[%emt 0:00:40]} a4 {[%emt 0:00:08]} 33. Qh8+ {[%emt 0:00:25]} Kf7 {[%emt 0:00:05]} 34. Rd7 {[%emt 0:00:21]} Be2 {[%emt 0:00:04]} 35. Qh4 {[%emt 0:01:29]} Rb5 {[%emt 0:00:06]} 36. Qxe7+ {[%emt 0:00:08]} Kg8 {[%emt 0:00:03]} 37. Qxg7# {[%emt 0:00:01]} 1-0

[Event "EWCCC Online Preliminary-C 2020"]
[Site "Online"]
[Date "2020.12.19"]
[Round "2.4"]
[White "Gara, Ticia"]
[Black "Dordzhieva, Dinara"]
[Result "0-1"]
[ECO "B81"]
[WhiteElo "2383"]
[BlackElo "2352"]
[Annotator "NA RC"]
[PlyCount "100"]
[EventDate "2020.12.19"]
[EventType "team-tourn"]
[EventCountry "NET"]
[SourceTitle "playchess.com"]
[Source "ChessBase"]
[SourceQuality "1"]
[TimeControl "900+5"]

1. e4 {[%emt 0:00:07]} c5 {[%emt 0:00:06]} 2. Nf3 {[%emt 0:00:07]} d6 {[%emt 0:00:03]} 3. d4 {[%emt 0:00:04]} cxd4 {[%emt 0:00:03]} 4. Nxd4 {[%emt 0:00:03]} Nf6 {[%emt 0:00:01]} 5. Nc3 {[%emt 0:00:03]} a6 {[%emt 0:00:07]} 6. h3 {[%emt 0:00:14]} e6 {[%emt 0:00:17]} 7. g4 {[%emt 0:00:18]} h6 {[%emt 0:00:05]} 8. Bg2 {[%emt 0:00:06]} g5 {[%emt 0:00:08]} 9. b3 {[%emt 0:00:21]} Nbd7 {[%emt 0:00:12]} 10. Qd2 {[%emt 0:00:12]} Ne5 {[%emt 0:00:34]} 11. Bb2 {[%emt 0:00:03]} b5 {[%emt 0:00:07]} 12. O-O-O {[%emt 0:00:10]} Bb7 {[%emt 0:00:23]} 13. f3 {[%emt 0:01:29]} Rc8 {[%emt 0:00:30]} 14. Kb1 {[%emt 0:00:20]} Be7 {[%emt 0:00:14]} 15. Nce2 {[%emt 0:00:15]} Qc7 {[%emt 0:00:28]} 16. Nc1 {[%emt 0:01:38]} d5 {[%emt 0:01:10]} 17. f4 {[%emt 0:02:51]} gxf4 {[%emt 0:00:49]} 18. Qxf4 {[%emt 0:00:02]} dxe4 {[%emt 0:00:42]} 19. c4 {[%emt 0:01:15]} Nf3 {[%emt 0:03:32]} 20. Qxc7 {[%emt 0:00:32]} Rxc7 {[%emt 0:00:03]} 21. cxb5 {[%emt 0:00:09]} axb5 {[%emt 0:01:19]} 22. Nxb5 {[%emt 0:00:03]} Rd7 {[%emt 0:01:02]} 23. Rxd7 {[%emt 0:00:03]} Kxd7 {[%emt 0:00:01]} 24. Rd1+ {[%emt 0:00:02]} Bd5 {[%emt 0:00:18]} 25. Nc3 {[%emt 0:00:20]} Rc8 {[%emt 0:00:08]} 26. Nxe4 {[%emt 0:00:21]} Nxe4 {[%emt 0:00:31]} 27. Bxf3 {[%emt 0:00:02]} Ke8 {[%emt 0:00:03]} 28. Ne2 {[%emt 0:01:32]} Bg5 {[%emt 0:00:14]} 29. Ka1 {[%emt 0:03:26]} Nf2 {[%emt 0:00:12]} 30. Rf1 {[%emt 0:00:34]} Bxf3 {[%emt 0:01:04]} 31. Rxf2 {[%emt 0:00:02]} Be4 {[%emt 0:00:11]} 32. Nc3 {[%emt 0:00:04]} Bg6 {[%emt 0:00:22]} 33. a4 {[%emt 0:00:03]} f5 {[%emt 0:00:03]} 34. Nb5 {[%emt 0:00:16]} Rc5 {[%emt 0:00:18]} 35. Bd4 {[%emt 0:00:07]} Rc1+ {[%emt 0:00:50]} 36. Kb2 {[%emt 0:00:01]} fxg4 {[%emt 0:00:03]} 37. hxg4 {[%emt 0:00:05]} Rb1+ {[%emt 0:00:02]} 38. Kc3 {[%emt 0:00:04]} Bd8 {[%emt 0:00:13]} 39. Nd6+ {[%emt 0:00:04]} Kd7 {[%emt 0:00:02]} 40. Nc4 {[%emt 0:00:03]} Be4 {[%emt 0:00:13]} 41. Rh2 {[%emt 0:00:19]} Rc1+ {[%emt 0:00:31]} 42. Kb2 {[%emt 0:00:04]} Rb1+ {[%emt 0:00:03]} 43. Kc3 {[%emt 0:00:03]} Rc1+ {[%emt 0:00:01]} 44. Kb4 {[%emt 0:00:01]} Be7+ {[%emt 0:00:03]} 45. Bc5 {[%emt 0:00:02]} Bg5 {[%emt 0:00:06]} 46. a5 {[%emt 0:00:14]} Ra1 {[%emt 0:00:05]} 47. Ne5+ {[%emt 0:00:09]} Kc7 {[%emt 0:00:06]} 48. Bb6+ {[%emt 0:00:02]} Kb7 {[%emt 0:00:01]} 49. Rg2 {[%emt 0:00:03]} Bxg2 {[%emt 0:00:04]} 50. Nc4 {[%emt 0:00:10]} Be7+ {[%emt 0:00:02]} 0-1

[Event "EWCCC Online Preliminary-C 2020"]
[Site "Online"]
[Date "2020.12.19"]
[Round "3.1"]
[White "Heric, Meta"]
[Black "Gara, Ticia"]
[Result "0-1"]
[ECO "B23"]
[WhiteElo "1318"]
[BlackElo "2383"]
[Annotator "NA RC"]
[PlyCount "88"]
[EventDate "2020.12.19"]
[EventType "team-tourn"]
[EventCountry "NET"]
[SourceTitle "playchess.com"]
[Source "ChessBase"]
[SourceQuality "1"]
[TimeControl "900+5"]

1. e4 {[%emt 0:00:00]} c5 {[%emt 0:00:02]} 2. Nc3 {[%emt 0:00:06]} Nc6 {[%emt 0:00:05]} 3. f4 {[%emt 0:00:02]} g6 {[%emt 0:00:03]} 4. Nf3 {[%emt 0:00:05]} Bg7 {[%emt 0:00:02]} 5. Bb5 {[%emt 0:00:02]} Nd4 {[%emt 0:00:02]} 6. O-O {[%emt 0:00:04]} Nxb5 {[%emt 0:00:03]} 7. Nxb5 {[%emt 0:00:02]} d6 {[%emt 0:00:01]} 8. Nc3 {[%emt 0:00:06]} Nf6 {[%emt 0:00:13]} 9. d3 {[%emt 0:00:05]} O-O {[%emt 0:00:16]} 10. Qe1 {[%emt 0:00:03]} e6 {[%emt 0:00:08]} 11. e5 {[%emt 0:00:43]} Ne8 {[%emt 0:04:30]} 12. Qg3 {[%emt 0:00:25]} d5 {[%emt 0:00:21]} 13. Nh4 {[%emt 0:01:23]} f5 {[%emt 0:01:03]} 14. Qh3 {[%emt 0:02:07]} Nc7 {[%emt 0:00:36]} 15. g4 {[%emt 0:00:29]} b6 {[%emt 0:01:07]} 16. Kf2 {[%emt 0:01:39]} d4 {[%emt 0:00:05]} 17. Ne2 {[%emt 0:00:10]} Bb7 {[%emt 0:00:37]} 18. Rg1 {[%emt 0:00:12]} Qd5 {[%emt 0:00:48]} 19. gxf5 {[%emt 0:00:18]} exf5 {[%emt 0:00:06]} 20. Rg3 {[%emt 0:01:04]} Ne6 {[%emt 0:00:20]} 21. Bd2 {[%emt 0:00:23]} Rac8 {[%emt 0:01:41]} 22. Rag1 {[%emt 0:00:08]} c4 {[%emt 0:00:37]} 23. Nf3 {[%emt 0:03:03]} cxd3 {[%emt 0:00:38]} 24. cxd3 {[%emt 0:00:23]} Rc2 {[%emt 0:00:06]} 25. Qf1 {[%emt 0:01:02]} Rfc8 {[%emt 0:00:17]} 26. h4 {[%emt 0:00:09]} Nc5 {[%emt 0:00:41]} 27. Ng5 {[%emt 0:00:39]} Rxd2 {[%emt 0:00:22]} 28. h5 {[%emt 0:00:48]} Nxd3+ {[%emt 0:00:26]} 29. Rxd3 {[%emt 0:00:15]} Rxd3 {[%emt 0:00:04]} 30. hxg6 {[%emt 0:00:34]} Rf3+ {[%emt 0:00:13]} 31. Nxf3 {[%emt 0:00:07]} Qxf3+ {[%emt 0:00:02]} 32. Ke1 {[%emt 0:00:13]} Qxf1+ {[%emt 0:00:01]} 33. Kxf1 {[%emt 0:00:07]} hxg6 {[%emt 0:00:07]} 34. Rxg6 {[%emt 0:00:04]} Ba6 {[%emt 0:00:20]} 35. Kf2 {[%emt 0:00:10]} Rc2 {[%emt 0:00:04]} 36. Kf3 {[%emt 0:00:15]} Bxe2+ {[%emt 0:00:05]} 37. Kg3 {[%emt 0:00:03]} Kf7 {[%emt 0:00:11]} 38. Rg5 {[%emt 0:00:05]} Bg4 {[%emt 0:00:06]} 39. Kh4 {[%emt 0:00:03]} d3 {[%emt 0:00:06]} 40. e6+ {[%emt 0:00:05]} Kxe6 {[%emt 0:00:03]} 41. Rxg7 {[%emt 0:00:03]} d2 {[%emt 0:00:01]} 42. Rxa7 {[%emt 0:00:05]} d1=Q {[%emt 0:00:05]} 43. Ra6 {[%emt 0:00:10]} Qh1+ {[%emt 0:00:02]} 44. Kg3 {[%emt 0:00:10]} Qh3# {[%emt 0:00:03]} 0-1